Cogmind - Beta 13 @@@ ROGUE MODE // 2024.04.30 @ 21:23:58 Player: SlyFyer Result: Destroyed by G-47 Trooper with Particle Gun Performance ------------- Evolutions (0) 0 Regions Visited (4) 800 Robots Destroyed (30) 150 Value Destroyed (740) 740 Prototype IDs (0) 0 Alien Tech Used (0) 0 Bonus (35) 35 TOTAL SCORE: 1725 Bonus ------- Follower Combat Kills 35 Cogmind --------- Core Integrity 0/250 Matter 300/300 Energy 100/100 System Corruption 0% Temperature Cool (9) Movement Rolling (130) Ox2 Location -9/Mines Parts ------- > --- POWER (1) -------- (None) > --- PROPULSION (2) --- Compact Wheel > --- UTILITY (2) ------ High-capacity Storage Unit Improved Targeting Computer > --- WEAPON (2) ------- (None) > --- INVENTORY (20) --- Light Nuclear Core High-capacity Matter Pod (200) Structural Scanner Improved Sensor Array Utility Shielding Light Armor Plating Light Armor Plating Hacking Suite Beam Rifle Beam Rifle Mace Signal Generator Peak State ------------ > --- POWER ------------ Light Nuclear Core > --- PROPULSION ------- Compact Wheel Compact Wheel > --- UTILITY ---------- Small Storage Unit Structural Scanner > --- WEAPON ----------- Beam Rifle Beam Rifle > --- INVENTORY -------- Compact Wheel High-capacity Matter Pod Sensor Array Signal Interpreter Improved Targeting Computer Hacking Suite Beam Rifle Datajack [Rating: 12] Favorites ----------- Power Ion Engine Engine Ion Engine Power Core Light Nuclear Core Propulsion Compact Wheel Wheel Compact Wheel Utility Small Storage Unit Device Structural Scanner Storage Small Storage Unit Processor Improved Targeting Computer Protection Light Armor Plating Weapon Beam Rifle Energy Gun Beam Rifle Special Weapon Mining Laser Build | -11 -10 -10 -10 -9 ------- Run | Yrd Mat Min Exi Min Slots Evolved . | . . . . . Power . | . . . . . Propulsion . | . . . . . Utility . | . . . . . Weapon . | . . . . . Parts Attached 30 | 6 15 7 1 1 Power 4 | 1 2 . . 1 Engine 2 | 1 1 . . . Core 2 | . 1 . . 1 Reactor . | . . . . . Propulsion 6 | 2 3 1 . . Treads . | . . . . . Leg . | . . . . . Wheel 6 | 2 3 1 . . Hover . | . . . . . Flight . | . . . . . Utility 5 | 1 1 2 1 . Device 1 | . 1 . . . Storage 2 | 1 . . 1 . Processor 1 | . . 1 . . Hackware . | . . . . . Protection 1 | . . 1 . . Artifact . | . . . . . Weapon 15 | 2 9 4 . . Energy Gun 13 | 2 7 4 . . Energy Cannon . | . . . . . Ballistic Gun . | . . . . . Ballistic Cannon . | . . . . . Launcher . | . . . . . Special Weapon 2 | . 2 . . . Impact Weapon . | . . . . . Slashing Weapon . | . . . . . Piercing Weapon . | . . . . . Special Melee Weapon . | . . . . . Unidentified Prototypes . | . . . . . Parts Lost 10 | . 5 5 . . Power 1 | . . 1 . . Propulsion 4 | . 2 2 . . Utility 1 | . . 1 . . Weapon 4 | . 3 1 . . Highest Loss Streak 5 | . 3 5 . . To Critical Strikes . | . . . . . Average Slot Usage (%) 84 | . 92 85 71 76 Engine 4 | . 9 . . . Core 3 | . 4 6 . 7 Wheel 22 | . 27 21 14 14 Device 5 | . 9 6 . . Storage 14 | . 14 14 14 14 Processor 5 | . . 6 14 14 Energy Gun 25 | . 22 28 28 26 Special Weapon 1 | . 3 . . . Naked Turns . | . . . . . Heaviest Build 51 | 14 17 17 46 51 Greatest Support 32 | 26 32 32 16 16 Greatest Overweight (x) 3 | 1 . 1 2 3 Average Overweight (x) . | . . . . 2 Largest Inventory Capacity 20 | 8 8 8 20 20 Average Capacity 9 | 7 8 8 13 20 Most Carried 12 | 6 8 8 8 12 Average Carried 7 | 2 7 7 7 9 Final Capacity 20 | 8 8 8 20 20 Final Carried 12 | 3 8 8 8 12 Class Distribution -------------------- 100% | Mutant Dominant Class ---------------- Mutant | -10/Materials Mutant | -10/Mines Mutant | -10/Exiles Mutant | -9/Mines Resources | -11 -10 -10 -10 -9 ----------- Run | Yrd Mat Min Exi Min Matter Collected 670 | 235 345 60 10 20 Remotely . | . . . . . Salvage Created 1097 | 80 643 334 . 40 Parts 63 | 2 41 19 . 1 Haulers Intercepted 2 | . 2 . . . Recyclers Shooed 1 | . 1 . . . Parts Field Recycled . | . . . . . Retrieved Matter . | . . . . . Parts Self-Destructed . | . . . . . Prevented . | . . . . . Kills | -11 -10 -10 -10 -9 ------- Run | Yrd Mat Min Exi Min Combat Hostiles Destroyed 21 | . 11 9 . 1 Guns 17 | . 9 7 . 1 Cannons 2 | . 2 . . . Classes Destroyed 7 | 1 5 1 . . Hauler 2 | . 2 . . . Recycler 2 | 1 1 . . . Operator 2 | . 2 . . . Watcher 3 | . 3 . . . Swarmer 6 | . 3 3 . . Grunt 13 | . 8 4 . 1 Sentry 2 | . . 2 . . Best Kill Streak 6 | 1 2 6 . 1 Combat Bots Only 6 | . 2 6 . 1 Max Kills in Single Turn 1 | 1 1 1 . 1 Gunslinging . | . . . . . Exploded . | . . . . . Melee . | . . . . . Uniques/NPCs Destroyed . | . . . . . Combat | -11 -10 -10 -10 -9 -------- Run | Yrd Mat Min Exi Min Hostile Shots Fired 140 | . 66 62 . 12 Missed 41 | . 18 19 . 4 Damage Taken 1169 | . 574 490 . 105 Core 250 | . 130 79 . 41 Absorbed by Shields . | . . . . . Core Remaining (%) 100 | 100 . . . . Volleys Fired 105 | 2 72 27 . 4 Largest 2 | 2 2 2 . 2 Hottest 150 | 100 150 121 . 112 Shots Fired 182 | 4 119 51 . 8 Gun 169 | 4 106 51 . 8 Cannon . | . . . . . Launcher . | . . . . . Special 13 | . 13 . . . Kinetic . | . . . . . Thermal 134 | 4 71 51 . 8 Explosive . | . . . . . Electromagnetic 48 | . 48 . . . Robot Hit Streak 10 | 2 9 7 . 10 Robot Miss Streak 4 | 1 4 3 . 1 Penetration Max . | . . . . . Secondary Targets 4 | . 2 2 . . Max Gunslinging Chain 1 | . 1 1 . . Shots Hit Robots 111 | 3 70 31 . 7 Core Hits 49 | 2 31 14 . 2 Critical Kills . | . . . . . Critical Parts Destroyed . | . . . . . Critical Strikes 10 | 1 5 3 . 1 Burn 8 | 1 3 3 . 1 Corrupt 2 | . 2 . . . Melee Attacks . | . . . . . Impact . | . . . . . Slashing . | . . . . . Piercing . | . . . . . Sneak Attacks . | . . . . . Combat Hostiles . | . . . . . Follow-up Attacks . | . . . . . Damage Inflicted 1587 | 39 992 456 . 100 Guns 1491 | 39 896 456 . 100 Cannons . | . . . . . Explosions . | . . . . . Melee . | . . . . . Ramming . | . . . . . Kinetic . | . . . . . Thermal 1285 | 39 690 456 . 100 Explosive . | . . . . . Electromagnetic 302 | . 302 . . . Impact . | . . . . . Slashing . | . . . . . Piercing . | . . . . . Highest Corruption . | . . . . . Average Corruption . | . . . . . Corruption Purged . | . . . . . Corruption Blocked . | . . . . . Overload Shots . | . . . . . Overflow Damage . | . . . . . Projectiles . | . . . . . Explosions . | . . . . . Melee . | . . . . . Knockbacks . | . . . . . Impact . | . . . . . Kinetic . | . . . . . Secondary . | . . . . . Self-Inflicted Damage . | . . . . . Shots . | . . . . . Rammed . | . . . . . Targets Rammed . | . . . . . Kicked . | . . . . . Crushed . | . . . . . Highest Temperature 381 | 78 330 381 . 126 Average Temperature 124 | 43 101 191 . 51 Received Heat Transfer 597 | . 363 171 . 63 Effects 6 | . . 6 . . Shutdowns 1 | . . 1 . . Energy Bleed 2 | . . 2 . . Interference 1 | . . 1 . . Short Circuit 1 | . . 1 . . Damage (minor) 1 | . . 1 . . Siege Activations . | . . . . . Robots Corrupted . | . . . . . Combat Hostiles . | . . . . . Parts Fried 2 | . 2 . . . Impact Corruptions . | . . . . . Robots Melted 2 | . . 2 . . Combat Hostiles 2 | . . 2 . . Parts Melted 8 | . 5 3 . . Heat Transferred 3921 | 185 2050 1369 . 317 Parts Sabotaged . | . . . . . Parts Stolen . | . . . . . Parts Stripped . | . . . . . Power Chain Reactions . | . . . . . Alert | -11 -10 -10 -10 -9 ------- Run | Yrd Mat Min Exi Min Peak Influence 244 | 5 244 147 . 68 Initial 37 | . 3 37 . . Average 81 | 1 103 56 . 33 Maximum Alert Level 1 | . 1 . . . Low Security (%) 97 | 100 95 100 . 100 Level 1 2 | . 4 . . . Level 2 . | . . . . . Level 3 . | . . . . . Level 4 . | . . . . . Level 5 . | . . . . . High Security . | . . . . . Max Security . | . . . . . Squads Dispatched 6 | . 5 . . 1 Investigation 4 | . 4 . . . Extermination . | . . . . . Reinforcement 1 | . 1 . . . Assault 1 | . . . . 1 Garrison . | . . . . . Intercept . | . . . . . Searches Triggered . | . . . . . Construction Impeded . | . . . . . Haulers Reinforced . | . . . . . Active Scanning Responses . | . . . . . Cargo Convoy Interrupts . | . . . . . Stealth | -11 -10 -10 -10 -9 --------- Run | Yrd Mat Min Exi Min Distress Signals 1 | . 1 . . . Communications Jammed . | . . . . . Distress Signals . | . . . . . Times Spotted 41 | . 25 9 . 7 Peak Tracking Total 5 | . 3 5 . 5 Tactical Retreats 8 | . 8 . . . Traps | -11 -10 -10 -10 -9 ------- Run | Yrd Mat Min Exi Min Traps Triggered . | . . . . . Indirectly . | . . . . . Trap Hack Attempts . | . . . . . Triggered . | . . . . . Disarmed . | . . . . . Reprogrammed . | . . . . . Reused . | . . . . . Traps Extracted . | . . . . . Installed . | . . . . . Triggered . | . . . . . Machines | -11 -10 -10 -10 -9 ---------- Run | Yrd Mat Min Exi Min Machines Disabled . | . . . . . Max in Single Turn . | . . . . . Machines Repaired . | . . . . . Machines Dismantled . | . . . . . Machines Sabotaged . | . . . . . Overloaded Fab Kills . | . . . . . Hacking | -11 -10 -10 -10 -9 --------- Run | Yrd Mat Min Exi Min Machines Accessed 15 | . 9 1 4 1 Terminals 8 | . 7 . . 1 Fabricators . | . . . . . Repair Stations . | . . . . . Recycling Units 2 | . 2 . . . Scanalyzers . | . . . . . Garrison Access . | . . . . . Total Hacks 27 | . 21 1 4 1 Successful 15 | . 10 1 4 . Failed 12 | . 11 . . 1 Catastrophic 2 | . 1 . . 1 Database Lockouts . | . . . . . Manual 21 | . 19 . 1 1 Terminals 18 | . 17 . . 1 Fabricators . | . . . . . Repair Stations . | . . . . . Recycling Units 4 | . 4 . . . Scanalyzers . | . . . . . Garrison Access . | . . . . . Terminal Hacks 7 | . 2 1 4 . Record 4 | . . . 4 . Open Door 1 | . . 1 . . Terminal Index 1 | . 1 . . . Recall Investigation 1 | . 1 . . . Fabricator Hacks . | . . . . . Repair Station Hacks . | . . . . . Recycling Unit Hacks . | . . . . . Scanalyzer . | . . . . . Garrison Access Hacks . | . . . . . Unauthorized Hacks 8 | . 8 . . . Terminals 6 | . 6 . . . Assimilate 1 | . 1 . . . Botnet 4 | . 4 . . . Operators 1 | . 1 . . . Fabricators . | . . . . . Repair Stations . | . . . . . Recycling Units 2 | . 2 . . . Tunnel 2 | . 2 . . . Scanalyzers . | . . . . . Garrison Access . | . . . . . Data Cores Recovered . | . . . . . Used . | . . . . . Hacking Detections 8 | . 7 . . 1 Full Trace Events 2 | . 2 . . . Feedback Events . | . . . . . Feedback Blocked . | . . . . . Robot Schematics Acquired . | . . . . . Robots Built . | . . . . . Authchips . | . . . . . Time . | . . . . . Total Robot Build Rating . | . . . . . Part Schematics Acquired . | . . . . . Parts Built . | . . . . . Authchips . | . . . . . Time . | . . . . . Total Part Build Rating . | . . . . . Parts Repaired . | . . . . . Time . | . . . . . Parts Recycled . | . . . . . Recycled Matter . | . . . . . Retrieved Matter . | . . . . . Retrieved Components . | . . . . . Parts Scanalyzed . | . . . . . Part Schematics Acquired . | . . . . . Parts Damaged . | . . . . . Bothacking | -11 -10 -10 -10 -9 ------------ Run | Yrd Mat Min Exi Min Used RIF Installer . | . . . . . Robots Hacked . | . . . . . Non-combat . | . . . . . Combat . | . . . . . Robot Hacks Applied . | . . . . . Relay Couplers Released . | . . . . . Fabnet Peak Effective % . | . . . . . Robots Rewired . | . . . . . Allies Hacked . | . . . . . Hacks Repelled . | . . . . . Allies | -11 -10 -10 -10 -9 -------- Run | Yrd Mat Min Exi Min Total Allies 1 | . . . . 1 Largest Group 1 | . . . . 1 Highest-Rated Group 31 | . . . . 31 Highest-Rated Ally 31 | . . . . 31 Total Orders . | . . . . . Ally Attacks 11 | . . . . 11 Total Damage 148 | . . . . 148 Kills 1 | . . . . 1 Allies Corrupted . | . . . . . Allies Melted . | . . . . . Intel | -11 -10 -10 -10 -9 ------- Run | Yrd Mat Min Exi Min Robot Analysis Total . | . . . . . Derelict Logs Recovered 2 | . . 1 . 1 Drone Launches . | . . . . . Drone Recoveries . | . . . . . Exploration | -11 -10 -10 -10 -9 ------------- Run | Yrd Mat Min Exi Min Turns Passed 3245 | 73 1463 742 802 165 Spaces Moved 2602 | 64 1109 607 714 108 Core 16 | 16 . . . . Treads . | . . . . . Legs . | . . . . . Wheels 2586 | 48 1109 607 714 108 Hover . | . . . . . Flight . | . . . . . Fastest Speed 50 | 50 90 100 100 130 Average Speed 104 | 82 97 103 112 136 Slowest Speed 145 | 100 100 115 130 145 Overloaded Moves . | . . . . . Propulsion Burnouts . | . . . . . Robots Hopped . | . . . . . Cave-ins Triggered . | . . . . . Exploration Rate (%) 60 | 3 98 90 92 21 Regions Visited 4 Branch Regions 3 Pre-discovered Areas 2 | . 2 . . . Known Exits Taken . | . . . . . Unknown Exits Taken 4 | 1 1 1 1 . Scrap Searched 2 | . . 2 . . Spaces Dug 4 | . 4 . . . Terrain Destroyed 6 | . 6 . . . Melee . | . . . . . Projectile 6 | . 6 . . . AOE . | . . . . . Terrain Rammed . | . . . . . Walls Destroyed . | . . . . . Machines Disabled . | . . . . . Actions | -11 -10 -10 -10 -9 --------- Run | Yrd Mat Min Exi Min Total 2932 | 79 1344 672 717 120 Wait 137 | . 119 18 . . Move 2598 | 63 1108 606 713 108 Hop . | . . . . . Pick Up 38 | 8 18 8 1 3 Fast Attach 5 | 1 4 . . . Attach 14 | 5 5 3 . 1 Detach 3 | . . . . 3 Swap 11 | . 6 4 1 . Drop 21 | . 12 6 2 1 Fire 105 | 2 72 27 . 4 Melee . | . . . . . Ram . | . . . . . Kick . | . . . . . Crush . | . . . . . Escape Stasis . | . . . . . Rewire . | . . . . . Trap . | . . . . . Miscellaneous . | . . . . . Route ------- -11/Scrapyard -10/Materials (discovered 5 exits: [*Mat x3] / *Min / [Sub]) -10/Mines (discovered 3 exits: [*Mat x2] / *Exi) -10/Exiles -9/Mines History --------- Turn | Location | Event 26 | -11/Scrapyard | Discovered new exit (range 16) 74 | -11/Scrapyard | Entered Materials 304 | -10/Materials | Build established: Mutant 364 | -10/Materials | Discovered new exit (range 16) 613 | -10/Materials | Discovered new exit (range 10) 615 | -10/Materials | Discovered new exit (range 6) 856 | -10/Materials | Discovered new exit (range 5) 869 | -10/Materials | Lost 3 parts (1n2w) 894 | -10/Materials | Discovered new exit (range 13) 1135 | -10/Materials | Core integrity fell below 50% 1537 | -10/Materials | Entered Mines 1599 | -10/Mines | Learned Materials garrison access intel 1602 | -10/Mines | Discovered new exit (range 5) 1843 | -10/Mines | Deemed a non-threat by the Exiles lab entrance 1844 | -10/Mines | Discovered new exit (range 5) 1966 | -10/Mines | Core integrity fell below 20% 1978 | -10/Mines | Lost 5 parts (1p2n1u1w) 2039 | -10/Mines | Discovered new exit (range 8) 2070 | -10/Mines | Met a Derelict who couldn't figure out how to use a Trap Extractor 2279 | -10/Mines | Entered Exiles 2279 | -10/Exiles | Found Exiles lab abandoned 3065 | -10/Exiles | Discovered new exit (range 14) 3081 | -10/Exiles | Entered Mines 3082 | -9/Mines | Met a Derelict testing a Signal Generator 3090 | -9/Mines | Found Signal Generator 3181 | -9/Mines | Learned location of 1 exit from Materials 3246 | -9/Mines | Destroyed by G-47 Trooper with Particle Gun Last Messages --------------- device we can use to divert those annoying Unaware when we need to." 03087_ Signal Generator broadcasts a burst of procedurally generated transmissions. 03087_ ALERT: Intercepting significant anomalous signal. Dispatching assault force. 03088_ CY-O8T(g): "Okay, I guess that means it works. Now let's get out of here!" 03089_ Dropped Utility Shielding. 03090_ Acquired Signal Generator. 03102_ Acquired Utility Shielding. 03145_ Connecting with Terminal... 03145_ Current location identified: Mines 03147_ G-47 Trooper destroyed. 03153_ Acquired 10 matter. 03156_ Acquired Lgt. Nuclear Core. 03164_ G-34 Mercenary suffers critical hit (Burn). 03167_ G-34 Mercenary destroyed. 03171_ Acquired 10 matter. 03181_ Acquired derelict log, extracted data. Data stored: Materials exits (x1). Map ----- +----------------------------------------------------+ | ????????????????????????????????????????????????? | | ????????????????????????????????????????????????? | | ????????????????????????????????????????????????? | | ????????????????????????????????????????????????? | | ????????????????????????????????????????????????? | | ????????????????????????????????????????????????? | | ????????????????????????????????????????????????? | | ????????????????????????????????????????????????? | | ????????????????????????????????????????????????? | | ???????####?????????????????????????????????????? | | ??????# ##????????????????????????????????????? | | ?????# #????????????????????????????????????? | | ???## #????????????????????????????????????? | | ???# #?????????????????????#??????????????? | | ???# #????????????? ??????? #??????????????? | | ???# #???????????? #????? #??????????????? | | ??## ##??????????? ##### ##?????????????? | | ??# ##### #??? ??????????????? | | ??# $ " ??? ???????????????? | | ??# " ???? ????????????????? | | ??# [ ### ???? #?????????????????? | | ??# ####??????????????? #??????????????????? | | ??# #?????????????????? #??????????????????? | | ??# #??????????????????# ##?????????????????? | | ??# #????############### ##????????????????? | | ??# #????# l @ ##???????????????? | | ?## ####?# gg ####????????????? | | ?# % #?#i ########## ##???????????? | | ?# = #?# #????????# #???????????? | | ?# """ #?# #????????## #???????????? | | ?# """ #?# #?????????### #???????????? | | ?# """ #?# #???????????# #### #???????????? | | ?# ### #???????????# #???? #??????????? | | ?# """ ## #???????????# #????? ??????????? | | ?# """%## #??????????## ##?????? ???????????? | | ?# """ ###??????????# #??????????????????? | | ?# #????????????# ##?????????????????? | | ?###T#######????????????# #?????????????????? | | ???###?????????????????## #?????????????????? | | ???????????????????????# ##?????????????????? | | ???????????????????????# ##??????????????????? | | ???????????????????????## ##???????????????????? | | ????????????????????????####????????????????????? | | ????????????????????????????????????????????????? | | ????????????????????????????????????????????????? | | ????????????????????????????????????????????????? | | ????????????????????????????????????????????????? | | ????????????????????????????????????????????????? | | | | | +----------------------------------------------------+ Best States ------------- Heat Dissipation 25 Energy Generation 14 Energy Capacity 250 Matter Stores 300 Matter Capacity 300 Sight Range 16 Terrain Scan Density 10 Armor Coverage 150 Evasion (%) 50 Targeting Accuracy 6 Item Schematics ----------------- None Robot Schematics ------------------ None Fabricated ------------ Nothing Alien Tech Used ----------------- None Achievements -------------- None Challenges ------------ None Game ------ Seed AccelerationDroneAmplifier Manual? 0 Play Time 00:28:31 Cumulative 78.4 hours Start 2024.04.30 @ 20:56:22 End 2024.04.30 @ 21:23:58 Sessions 1 Manual Loads 0 Difficulty Rogue Special Mode None Game No. 35 Rogue 5 Adventurer 30 Explorer 0 Win Type - Total 3 Types 2/1/0/0/0/0/0/0/0 Lore% 49 Gallery% 65 Achievement% 59 Wizard Run 0 Options --------- Layout 0 ASCII 0 Keyboard 0 Movement Mouse Keybinds 0 Fullscreen 1 Font 18/SmallcapsGlow Map View 76x50 Zoom Use 0% Tactical HUD 1 Map Filters NONE Filters NONE Steam 1 RUN: b86122f7-7341-4237-86d1-8e49f8e7fbfc